fUSD/lending_fUSD_20251223
["ID","MTS","AMOUNT","RATE_DAILY","PERIOD"]
[399561042,1766487474660,-500.0,0.00045479,120]
[399561043,1766487474704,-847.16,0.00045479,120]
[399561044,1766487474748,-1188.06,0.00045479,120]
[399561045,1766487474792,-500.0,0.00045479,120]
[399561046,1766487474836,-626.28,0.00045479,120]
[399561047,1766487474877,-500.0,0.00045479,120]
[399561048,1766487474920,-500.0,0.00045479,120]
[399561049,1766487474969,-500.0,0.00045479,120]
[399561050,1766487475012,-500.0,0.00045479,120]
[399561051,1766487475055,-1482.2,0.00045479,120]
[399561052,1766487475098,-570.04,0.00045479,120]
[399561053,1766487475142,-612.78,0.00045479,120]
[399561054,1766487475188,-500.0,0.00045479,120]
[399561055,1766487475235,-500.0,0.00045479,120]
[399561056,1766487475283,-1255.16,0.00045479,120]
[399561057,1766487475334,-1932.35,0.00045479,120]
[399561058,1766487475381,-464.78797625,0.00045479,120]
[399561059,1766487475428,-1678.76,0.00045479,120]
[399561060,1766487475475,-438.38427947,0.00045479,120]
[399561061,1766487475518,-500.0,0.00045479,120]
[399561062,1766487475562,-1569.44,0.00045479,120]
[399561063,1766487475603,-496.65877566,0.00045479,120]
[399561064,1766487475644,-1870.13,0.00045479,120]
[399561065,1766487475688,-500.0,0.00045479,120]
[399561066,1766487475731,-500.0,0.00045479,120]
[399561067,1766487475773,-500.0,0.00045479,120]
[399561068,1766487475816,-500.0,0.00045479,120]
[399561069,1766487475859,-500.0,0.00045479,120]
[399561070,1766487475901,-500.0,0.00045479,120]
[399561071,1766487475944,-500.0,0.00045479,120]
[399561072,1766487475987,-512.55579017,0.00045479,120]
[399561073,1766487476033,-404.22902971,0.00045479,120]
[399561074,1766487476090,-2182.76,0.00045479,120]
[399561075,1766487476141,-500.0,0.00045479,120]
[399561076,1766487476191,-500.0,0.00045479,120]
[399561077,1766487476238,-500.0,0.00045479,120]
[399561078,1766487476285,-641.10371596,0.00045479,120]
[399561079,1766487476334,-1062.94,0.00045479,120]
[399561080,1766487476381,-500.0,0.00045479,120]
[399561081,1766487476426,-500.0,0.00045479,120]
[399561082,1766487476471,-500.0,0.00045479,60]
[399561083,1766487476514,-164.6549975,0.00045479,120]
[399561084,1766487476557,-500.0,0.00045479,120]
[399561085,1766487476600,-500.0,0.00045479,120]
[399561086,1766487476643,-500.0,0.00045479,120]
[399561087,1766487476686,-500.0,0.00045479,120]
[399561088,1766487476727,-503.44,0.00045479,120]
[399561089,1766487476770,-500.0,0.00045479,120]
[399561090,1766487476810,-595.91,0.00045479,120]
[399561091,1766487476852,-811.74,0.00045479,120]
[399561092,1766487476894,-500.0,0.00045479,120]
[399561093,1766487476934,-500.0,0.00045479,120]
[399561094,1766487476976,-650.99,0.00045479,120]
[399561095,1766487477019,-500.0,0.00045479,120]
[399561096,1766487477064,-500.0,0.00045479,120]
[399561097,1766487477115,-500.0,0.00045479,120]
[399561098,1766487477163,-500.0,0.00045479,120]
[399561099,1766487477211,-1388.3,0.00045479,120]
[399561100,1766487477259,-500.0,0.00045479,120]
[399561101,1766487477306,-500.0,0.00045479,120]
[399561102,1766487477351,-500.0,0.00045479,120]
[399561103,1766487477397,-500.0,0.00045479,120]
[399561104,1766487477444,-1432.96,0.00045479,120]
[399561105,1766487477492,-689.37,0.00045479,120]
[399561106,1766487477544,-1562.05,0.00045479,120]
[399561107,1766487477591,-500.0,0.00045479,120]
[399561108,1766487477636,-1196.29,0.00045479,120]
[399561109,1766487477680,-500.0,0.00045479,120]
[399561110,1766487477724,-1708.74,0.00045479,120]
[399561111,1766487477765,-500.0,0.00045479,120]
[399561112,1766487477806,-1298.55,0.00045479,120]
[399561113,1766487477846,-500.0,0.00045479,120]
[399561114,1766487477888,-1689.23,0.00045479,120]
[399561115,1766487477933,-500.0,0.00045479,120]
[399561116,1766487477977,-1005.64,0.00045479,120]
[399561117,1766487478022,-500.0,0.00045479,60]
[399561118,1766487478065,-500.0,0.00045479,90]
[399561119,1766487478111,-10397.11,0.00045479,120]
[399561120,1766487478158,-765.9,0.00045479,120]
[399561121,1766487478203,-500.0,0.00045479,120]
[399561122,1766487478252,-500.0,0.00045479,120]
[399561123,1766487478299,-500.0,0.00045479,120]
[399561124,1766487478352,-2677.03,0.00045479,120]
[399561125,1766487478735,-600.0,0.00045499,60]
[399561126,1766487478780,-194.72792766,0.00045499,60]
[399561127,1766487478822,-1000.0,0.00045499,60]
[399561128,1766487478864,-1500.0,0.00045499,60]
[399561129,1766487478906,-500.0,0.00045499,60]
[399561130,1766487478955,-500.0,0.00045499,60]
[399561131,1766487478996,-151.0,0.00045499,60]
[399561132,1766487479044,-194.72792766,0.00045499,60]
[399561133,1766487479085,-670.58624095,0.00045499,60]
[399561134,1766487479125,-160.0,0.00045499,60]
[399561135,1766487479167,-250.0,0.00045499,60]
[399561136,1766487479210,-151.0,0.00045499,60]
[399561137,1766487479254,-500.0,0.00045499,60]
[399561138,1766487479299,-500.0,0.00045499,60]
[399561139,1766487479340,-500.0,0.00045499,60]
[399561140,1766487479380,-151.0,0.00045499,60]
[399561141,1766487479423,-533.88981491,0.00045499,60]
[399561142,1766487479477,-250.0,0.00045499,60]
[399561143,1766487479518,-250.0,0.00045499,60]
[399561144,1766487479559,-250.0,0.00045499,60]
[399561145,1766487479603,-250.0,0.00045499,60]
[399561146,1766487479658,-644.79446246,0.00045499,60]
[399561147,1766487479707,-500.0,0.00045499,60]
[399561148,1766487479749,-250.0,0.00045499,60]
[399561149,1766487479787,-1008.25408494,0.000455,120]
[399561150,1766487479828,-176.0,0.000455,120]
[399561151,1766487479868,-5000000.0,0.000455,120]
[399561152,1766487479907,-600.0,0.00045599,120]
[399561153,1766487479946,-187.78006525,0.00045599,120]
[399561154,1766487479986,-1000.0,0.00045599,120]
[399561155,1766487480026,-1500.0,0.00045599,120]
[399561156,1766487480068,-500.0,0.00045599,120]
[399561157,1766487480114,-500.0,0.00045599,120]
[399561158,1766487480160,-151.0,0.00045599,120]
[399561159,1766487480209,-187.78006525,0.00045599,120]
[399561160,1766487480257,-646.65982734,0.00045599,120]
[399561161,1766487480300,-160.0,0.00045599,120]
[399561162,1766487480346,-250.0,0.00045599,120]
[399561163,1766487480395,-151.0,0.00045599,120]
[399561164,1766487480442,-500.0,0.00045599,120]
[399561165,1766487480488,-500.0,0.00045599,120]
[399561166,1766487480534,-500.0,0.00045599,120]
[399561167,1766487480580,-151.0,0.00045599,120]
[399561168,1766487480625,-208.64493634,0.00045599,120]
[399561169,1766487480673,-514.84070869,0.00045599,120]
[399561170,1766487480718,-250.0,0.00045599,120]
[399561171,1766487480765,-250.0,0.00045599,120]
[399561172,1766487480809,-250.0,0.00045599,120]
[399561173,1766487480853,-250.0,0.00045599,120]
[399561174,1766487480895,-621.78829552,0.00045599,120]
[399561175,1766487480937,-500.0,0.00045599,120]
[399561176,1766487480980,-250.0,0.00045599,120]
[399561177,1766487481024,-200.0,0.00045677,120]
[399561178,1766487481068,-1663.43607996,0.000457,120]
[399561179,1766487481115,-917.06,0.00045753,120]
[399561180,1766487481165,-500.0,0.00045753,120]
[399561181,1766487481213,-534.90993859,0.00045753,120]
[399561182,1766487481260,-280.91690526,0.00045753,120]
[399561183,1766487481305,-379.78797121,0.00045753,120]
[399561184,1766487481351,-500.0,0.00045753,120]
[399561185,1766487481396,-500.0,0.00045753,120]
[399561186,1766487481439,-500.0,0.00045753,120]
[399561187,1766487481483,-500.0,0.00045753,120]
[399561188,1766487481524,-500.0,0.00045753,120]
[399561189,1766487481567,-500.0,0.00045753,120]
[399561190,1766487481609,-1369.07,0.00045753,120]
[399561191,1766487481648,-500.0,0.00045753,120]
[399561192,1766487481688,-500.0,0.00045753,120]
[399561193,1766487481728,-756.38,0.00045753,120]
[399561194,1766487481766,-500.0,0.00045753,120]
[399561195,1766487481805,-500.0,0.00045753,120]
[399561196,1766487481844,-500.0,0.00045753,120]
[399561197,1766487481886,-500.0,0.00045753,120]
[399561198,1766487481926,-500.0,0.00045753,120]
[399561199,1766487481964,-500.0,0.00045753,120]
[399561200,1766487482005,-151.68729685,0.00045753,120]
[399561201,1766487482047,-500.0,0.00045753,120]
[399561202,1766487482090,-500.0,0.00045753,120]
[399561203,1766487482131,-500.0,0.00045753,120]
[399561204,1766487482174,-500.0,0.00045753,120]
[399561205,1766487482222,-500.0,0.00045753,120]
[399561206,1766487482269,-421.28351526,0.00045753,120]
[399561207,1766487482314,-500.0,0.00045753,120]
[399561208,1766487482360,-500.0,0.00045753,120]
[399561209,1766487482402,-500.0,0.00045753,120]
[399561210,1766487482444,-462.83263354,0.00045753,120]
[399561211,1766487482484,-500.0,0.00045753,120]
[399561212,1766487482525,-500.0,0.00045753,120]
[399561213,1766487482565,-433.54799182,0.00045753,120]
[399561214,1766487482608,-500.0,0.00045753,120]
[399561215,1766487482647,-286.55061808,0.00045753,120]
[399561216,1766487482688,-500.0,0.00045753,120]
[399561217,1766487482727,-500.0,0.00045753,120]
[399561218,1766487482765,-500.0,0.00045753,120]
[399561219,1766487482803,-500.0,0.00045753,120]
[399561220,1766487483137,-500.0,0.00045753,120]
[399561221,1766487483188,-1039.08,0.00045753,120]
[399561222,1766487483235,-2118.86,0.00045753,120]
[399561223,1766487483283,-2017.38,0.00045753,120]
[399561224,1766487483331,-500.0,0.00045753,120]
[399561225,1766487483377,-500.0,0.00045753,120]
[399561226,1766487483427,-500.0,0.00045753,120]
[399561227,1766487483477,-500.0,0.00045753,120]
[399561228,1766487483524,-1042.93,0.00045753,120]
[399561229,1766487483571,-500.0,0.00045753,120]
[399561230,1766487483617,-500.0,0.00045753,120]
[399561231,1766487483663,-240.33761976,0.00045753,120]
[399561232,1766487483708,-500.0,0.00045753,120]
[399561233,1766487483756,-369.91492567,0.00045753,120]
[399561234,1766487483802,-500.0,0.00045753,120]
[399561235,1766487483848,-500.0,0.00045753,120]
[399561236,1766487483895,-500.0,0.00045753,120]
[399561237,1766487483941,-500.0,0.00045753,120]
[399561238,1766487483986,-500.0,0.00045753,120]
[399561239,1766487484030,-500.0,0.00045753,120]
[399561240,1766487484081,-500.0,0.00045753,120]
[399561241,1766487484127,-500.0,0.00045753,120]
[399561242,1766487484173,-500.0,0.00045753,120]
[399561243,1766487484220,-500.0,0.00045753,120]
[399561244,1766487484266,-460.19660189,0.00045753,120]
[399561245,1766487484312,-500.0,0.00045753,120]
[399561246,1766487484357,-171.12365612,0.00045753,120]
[399561247,1766487484403,-500.0,0.00045753,120]
[399561248,1766487484448,-500.0,0.00045753,120]
[399561250,1766487484492,-500.0,0.00045753,120]
[399561251,1766487484536,-500.0,0.00045753,120]
[399561252,1766487484578,-500.0,0.00045753,120]
[399561253,1766487484620,-500.0,0.00045753,120]
[399561254,1766487484660,-233.2868032,0.00045753,120]
[399561255,1766487484701,-1059.91,0.00045753,120]
[399561256,1766487484743,-582.18,0.00045753,120]
[399561257,1766487484784,-500.0,0.00045753,120]
[399561258,1766487484824,-500.0,0.00045753,120]
[399561259,1766487484866,-514.4,0.00045753,120]
[399561260,1766487484907,-500.0,0.00045753,120]
[399561261,1766487484948,-628.20733221,0.00045753,120]
[399561262,1766487484990,-500.0,0.00045753,120]
[399561263,1766487485032,-500.0,0.00045753,120]
[399561264,1766487485073,-500.0,0.00045753,120]
[399561265,1766487485118,-500.0,0.00045753,120]
[399561266,1766487485161,-500.0,0.00045753,120]
[399561267,1766487485204,-500.0,0.00045753,120]
[399561268,1766487485248,-500.0,0.00045753,120]
[399561269,1766487485292,-500.0,0.00045753,120]
[399561270,1766487485335,-158.39651923,0.00045753,120]
[399561271,1766487485379,-184.73163962,0.00045753,120]
[399561272,1766487485423,-500.0,0.00045753,120]
[399561273,1766487485465,-500.0,0.00045753,120]
[399561274,1766487485507,-500.0,0.00045753,120]
[399561275,1766487485548,-500.0,0.00045753,120]
[399561276,1766487485587,-500.0,0.00045753,120]
[399561277,1766487485625,-500.0,0.00045753,120]
[399561278,1766487485665,-429.54976122,0.00045753,120]
[399561279,1766487485703,-468.10198145,0.00045753,120]
[399561280,1766487485740,-500.0,0.00045753,120]
[399561281,1766487485776,-500.0,0.00045753,120]
[399561282,1766487485816,-500.0,0.00045753,120]
[399561283,1766487485856,-500.0,0.00045753,120]
[399561284,1766487485894,-517.89480781,0.00045753,120]
[399561285,1766487485932,-500.0,0.00045753,120]
[399561286,1766487485970,-500.0,0.00045753,120]
[399561287,1766487486009,-500.0,0.00045753,120]
[399561288,1766487486050,-500.0,0.00045753,120]
[399561289,1766487486091,-500.0,0.00045753,120]
[399561290,1766487486132,-500.0,0.00045753,120]
[399561291,1766487486174,-500.0,0.00045753,120]
[399561292,1766487486217,-500.0,0.00045753,120]
[399561293,1766487486260,-500.0,0.00045753,120]
[399561294,1766487486303,-500.0,0.00045753,120]
[399561295,1766487486344,-500.0,0.00045753,120]
[399561296,1766487486386,-1956.07,0.00045753,120]
[399561297,1766487486429,-1842.03,0.00045753,120]
[399561298,1766487486471,-500.0,0.00045753,120]
[399561299,1766487486510,-2752.43,0.00045753,120]
[399561300,1766487486551,-500.0,0.00045753,120]
[399561301,1766487486592,-312.43497983,0.00045753,120]
[399561302,1766487486630,-500.0,0.00045753,120]
[399561303,1766487486668,-500.0,0.00045753,120]
[399561304,1766487486706,-500.0,0.00045753,120]
[399561305,1766487486744,-500.0,0.00045753,120]
[399561306,1766487486780,-500.0,0.00045753,120]
[399561307,1766487486818,-500.0,0.00045753,120]
[399561308,1766487486855,-500.0,0.00045753,120]
[399561309,1766487486891,-500.0,0.00045753,120]
[399561310,1766487486930,-500.0,0.00045753,120]
[399561311,1766487486968,-586.34,0.00045753,120]
[399561312,1766487487008,-500.0,0.00045753,120]
[399561313,1766487487047,-290.48390102,0.00045753,120]
[399561314,1766487487087,-500.0,0.00045753,120]
[399561315,1766487487125,-355.02688708,0.00045753,120]
[399561316,1766487487374,-500.0,0.00045753,120]
[399561317,1766487487421,-500.0,0.00045753,120]
[399561318,1766487487467,-500.0,0.00045753,120]
[399561319,1766487487509,-500.0,0.00045753,120]
[399561320,1766487487549,-697.63,0.00045753,120]
[399561321,1766487487588,-421.37401585,0.00045753,120]
[399561322,1766487487628,-500.0,0.00045753,60]
[399561323,1766487487669,-500.0,0.00045753,120]
[399561324,1766487487712,-216.69619869,0.00045753,120]
[399561325,1766487487753,-469.49394434,0.00045753,120]
[399561326,1766487487796,-500.0,0.00045753,120]
[399561327,1766487487835,-982.85,0.00045753,120]
[399561328,1766487487875,-500.0,0.00045753,120]
[399561329,1766487487915,-500.0,0.00045753,120]
[399561330,1766487487960,-500.0,0.00045753,120]
[399561331,1766487488004,-500.0,0.00045753,120]
[399561332,1766487488049,-500.0,0.00045753,120]
[399561333,1766487488097,-500.0,0.00045753,120]
[399561334,1766487488145,-500.0,0.00045753,120]
[399561335,1766487488209,-500.0,0.00045753,120]
[399561336,1766487488260,-500.0,0.00045753,120]
[399561337,1766487488308,-500.0,0.00045753,120]
[399561338,1766487488355,-586.9619019,0.00045753,120]
[399561339,1766487488399,-500.0,0.00045753,120]
[399561340,1766487488441,-500.0,0.00045753,120]
[399561341,1766487488484,-715.76,0.00045753,120]
[399561342,1766487488528,-457.08383807,0.00045753,120]
[399561343,1766487488568,-500.0,0.00045753,120]
[399561344,1766487488610,-533.16165414,0.00045753,120]
[399561345,1766487488650,-500.0,0.00045753,120]
[399561346,1766487488690,-500.0,0.00045753,120]
[399561347,1766487488732,-500.0,0.00045753,120]
[399561348,1766487488774,-500.0,0.00045753,120]
[399561349,1766487488813,-500.0,0.00045753,120]
[399561350,1766487488853,-500.0,0.00045753,120]
[399561351,1766487488894,-547.28459114,0.00045753,120]
[399561352,1766487488935,-500.0,0.00045753,120]
[399561353,1766487488977,-500.0,0.00045753,120]
[399561354,1766487489022,-500.0,0.00045753,120]
[399561355,1766487489069,-323.24770812,0.00045753,120]
[399561356,1766487489115,-544.42742013,0.00045753,120]
[399561357,1766487489157,-500.0,0.00045753,120]
[399561358,1766487489200,-500.0,0.00045753,120]
[399561359,1766487489247,-500.0,0.00045753,120]
[399561360,1766487489291,-500.0,0.00045753,120]
[399561361,1766487489334,-500.0,0.00045753,120]
[399561362,1766487489377,-1723.75,0.00045753,120]
[399561363,1766487489417,-531.43403837,0.00045753,120]
[399561364,1766487489458,-500.0,0.00045753,120]
[399561365,1766487489498,-500.0,0.00045753,120]
[399561366,1766487489536,-524.92,0.00045753,120]
[399561367,1766487489575,-339.36739023,0.00045753,120]
[399561368,1766487489612,-906.89,0.00045753,60]
[399561369,1766487489648,-545.88,0.00045753,120]
[399561370,1766487489686,-562.12412464,0.00045753,120]
[399561371,1766487489722,-500.0,0.00045753,120]
[399561372,1766487489760,-500.0,0.00045753,120]
[399561373,1766487489796,-500.0,0.00045753,120]
[399561374,1766487489833,-1273.67,0.00045753,120]
[399561375,1766487489870,-500.0,0.00045753,120]
[399561376,1766487489911,-500.0,0.00045753,120]
[399561377,1766487489950,-500.0,0.00045753,120]
[399561378,1766487489989,-500.0,0.00045753,120]
[399561379,1766487490027,-500.0,0.00045753,120]
[399561380,1766487490064,-500.0,0.00045753,120]
[399561381,1766487490102,-616.17,0.00045753,120]
[399561382,1766487490143,-500.0,0.00045753,120]
[399561383,1766487490183,-779.23,0.00045753,120]
[399561384,1766487490225,-760.79,0.00045753,120]
[399561385,1766487490268,-500.0,0.00045753,120]
[399561386,1766487490310,-500.0,0.00045753,120]
[399561387,1766487490353,-500.0,0.00045753,120]
[399561388,1766487490395,-500.0,0.00045753,120]
[399561389,1766487490440,-1543.48,0.00045753,120]
[399561390,1766487490483,-680.4,0.00045753,120]
[399561391,1766487490525,-500.0,0.00045753,120]
[399561392,1766487490567,-500.0,0.00045753,120]
[399561393,1766487490608,-1112.14,0.00045753,120]
[399561394,1766487490669,-500.0,0.00045753,120]
[399561395,1766487490719,-705.5,0.00045753,120]
[399561396,1766487490765,-500.0,0.00045753,120]
[399561397,1766487490807,-1242.77,0.00045753,120]
[399561398,1766487490849,-500.0,0.00045753,120]
[399561399,1766487490889,-500.0,0.00045753,120]
[399561400,1766487490931,-500.0,0.00045753,120]
[399561401,1766487490972,-500.0,0.00045753,120]
[399561402,1766487491014,-500.0,0.00045753,120]
[399561403,1766487491060,-500.0,0.00045753,120]
[399561404,1766487491105,-569.13325836,0.00045753,120]
[399561405,1766487491148,-487.2055273,0.00045753,120]
[399561406,1766487491193,-636.03,0.00045753,120]
[399561407,1766487491238,-500.0,0.00045753,120]
[399561408,1766487491282,-1402.13,0.00045753,120]
[399561409,1766487491326,-1997.32,0.00045753,120]
[399561410,1766487491373,-500.0,0.00045753,120]
[399561411,1766487491629,-500.0,0.00045753,120]
[399561412,1766487491675,-500.0,0.00045753,120]
[399561413,1766487491720,-1364.75,0.00045753,60]
[399561414,1766487491762,-500.0,0.00045753,120]
[399561415,1766487491804,-766.62,0.00045753,120]
[399561416,1766487491860,-500.0,0.00045753,120]
[399561417,1766487491904,-500.0,0.00045753,120]
[399561418,1766487491947,-839.95,0.00045753,120]
[399561419,1766487491992,-500.0,0.00045753,120]
[399561420,1766487492036,-500.0,0.00045753,120]
[399561421,1766487492080,-522.41,0.00045753,120]
[399561422,1766487492125,-500.0,0.00045753,120]
[399561423,1766487492170,-500.0,0.00045753,120]
[399561424,1766487492216,-500.0,0.00045753,120]
[399561425,1766487492266,-500.0,0.00045753,120]
[399561426,1766487492315,-500.0,0.00045753,120]
[399561427,1766487492362,-642.74,0.00045753,120]
[399561428,1766487492409,-500.0,0.00045753,120]
[399561429,1766487492456,-500.0,0.00045753,120]
[399561430,1766487492502,-500.0,0.00045753,120]
[399561431,1766487492552,-500.0,0.00045753,120]
[399561432,1766487492597,-500.0,0.00045753,120]
[399561433,1766487492642,-500.0,0.00045753,120]
[399561434,1766487492688,-500.0,0.00045753,120]
[399561435,1766487492734,-500.0,0.00045753,120]
[399561436,1766487492776,-500.0,0.00045753,120]
[399561437,1766487492819,-378.44695554,0.00045753,120]
[399561438,1766487492862,-500.0,0.00045753,120]
[399561439,1766487492902,-1016.98,0.00045753,120]
[399561440,1766487492944,-566.15,0.00045753,120]
[399561441,1766487492983,-500.0,0.00045753,120]
[399561442,1766487493024,-500.0,0.00045753,120]
[399561443,1766487493062,-540.81664348,0.00045753,120]
[399561444,1766487493102,-500.0,0.00045753,120]
[399561445,1766487493146,-567.85,0.00045753,120]
[399561446,1766487493190,-500.0,0.00045753,120]
[399561447,1766487493233,-574.96731124,0.00045753,120]
[399561448,1766487493275,-500.0,0.00045753,120]
[399561449,1766487493319,-500.0,0.00045753,120]
[399561450,1766487493362,-500.0,0.00045753,120]
[399561451,1766487493404,-500.0,0.00045753,120]
[399561452,1766487493445,-500.0,0.00045753,120]
[399561453,1766487493486,-1210.55,0.00045753,120]
[399561454,1766487493527,-1710.74,0.00045753,120]
[399561455,1766487493569,-500.0,0.00045753,120]
[399561456,1766487493608,-1312.95,0.00045753,120]
[399561457,1766487493647,-1224.52,0.00045753,120]
[399561458,1766487493687,-1696.75,0.00045753,120]
[399561459,1766487493726,-500.0,0.00045753,120]
[399561460,1766487493766,-500.0,0.00045753,120]
[399561461,1766487493804,-500.0,0.00045753,120]
[399561462,1766487493843,-502.71078633,0.00045753,120]
[399561463,1766487493883,-557.62,0.00045753,120]
[399561464,1766487493925,-526.92,0.00045753,120]
[399561465,1766487493965,-500.0,0.00045753,120]
[399561466,1766487494007,-635.78929515,0.00045753,120]
[399561467,1766487494050,-500.0,0.00045753,120]
[399561468,1766487494091,-1297.54,0.00045753,120]
[399561469,1766487494134,-555.83,0.00045753,120]
[399561470,1766487494174,-500.0,0.00045753,120]
[399561471,1766487494215,-500.0,0.00045753,120]
[399561472,1766487494259,-500.0,0.00045753,120]
[399561473,1766487494301,-873.07,0.00045753,120]
[399561474,1766487494342,-604.78,0.00045753,120]
[399561475,1766487494386,-2639.11,0.00045753,120]
[399561476,1766487494429,-600.1,0.00045753,120]
[399561477,1766487494473,-500.0,0.00045753,120]
[399561478,1766487494516,-177.36186376,0.00045753,120]
[399561479,1766487494559,-500.0,0.00045753,120]
[399561480,1766487494600,-622.5,0.00045753,120]
[399561481,1766487494643,-500.0,0.00045753,120]
[399561482,1766487494684,-500.0,0.00045753,120]
[399561483,1766487494725,-500.0,0.00045753,120]
[399561484,1766487494765,-567.72,0.00045753,120]
[399561485,1766487494804,-500.0,0.00045753,120]
[399561486,1766487494846,-2830.44,0.00045753,120]
[399561487,1766487494883,-592.25,0.00045753,120]
[399561488,1766487494921,-711.79,0.00045753,120]
[399561489,1766487494959,-500.0,0.00045753,120]
[399561490,1766487494995,-500.0,0.00045753,120]
[399561491,1766487495033,-619.91,0.00045753,120]
[399561492,1766487495069,-500.0,0.00045753,120]
[399561493,1766487495110,-865.33,0.00045753,120]
[399561494,1766487495152,-500.0,0.00045753,60]
[399561495,1766487495197,-580.69,0.00045753,120]
[399561496,1766487495241,-500.0,0.00045753,120]
[399561497,1766487495290,-371.76206267,0.00045753,120]
[399561498,1766487495333,-500.0,0.00045753,120]
[399561499,1766487495377,-326.6735468,0.00045753,120]
[399561500,1766487495420,-865.61,0.00045753,120]
[399561501,1766487495461,-500.0,0.00045753,120]
[399561502,1766487495500,-1432.6,0.00045753,120]
[399561503,1766487495537,-500.0,0.00045753,120]
[399561504,1766487495575,-893.55,0.00045753,120]
[399561505,1766487495615,-500.0,0.00045753,120]
[399561506,1766487495864,-1688.71,0.00045753,120]
[399561507,1766487495909,-905.29,0.00045753,120]
[399561508,1766487495952,-632.22,0.00045753,120]
[399561509,1766487495994,-500.0,0.00045753,120]
[399561510,1766487496036,-592.93,0.00045753,120]
[399561511,1766487496080,-519.34,0.00045753,120]
[399561512,1766487496125,-1835.93,0.00045753,120]
[399561513,1766487496169,-697.2,0.00045753,120]
[399561514,1766487496212,-878.66,0.00045753,120]
[399561515,1766487496255,-500.0,0.00045753,120]
[399561516,1766487496296,-500.0,0.00045753,120]
[399561517,1766487496338,-913.04,0.00045753,120]
[399561518,1766487496382,-500.0,0.00045753,120]
[399561519,1766487496426,-751.1,0.00045753,120]
[399561520,1766487496469,-500.0,0.00045753,120]
[399561521,1766487496511,-1075.62,0.00045753,60]
[399561522,1766487496561,-500.0,0.00045753,120]
[399561523,1766487496612,-1328.41,0.00045753,120]
[399561524,1766487496661,-500.0,0.00045753,120]
[399561525,1766487496703,-500.0,0.00045753,120]
[399561526,1766487496751,-500.0,0.00045753,120]
[399561527,1766487496801,-500.0,0.00045753,120]
[399561528,1766487496842,-599.0,0.00045753,120]
[399561529,1766487496890,-886.86,0.00045753,120]
[399561530,1766487496930,-500.0,0.00045753,120]
[399561531,1766487496979,-500.0,0.00045753,120]
[399561532,1766487497025,-500.0,0.00045753,120]
[399561533,1766487497074,-500.0,0.00045753,120]
[399561534,1766487497126,-560.74,0.00045753,120]
[399561535,1766487497167,-500.0,0.00045753,120]
[399561536,1766487497211,-500.0,0.00045753,120]
[399561537,1766487497265,-1433.05,0.00045753,120]
[399561538,1766487497312,-500.0,0.00045753,120]
[399561539,1766487497356,-500.0,0.00045753,120]
[399561540,1766487497409,-2265.89,0.00045753,120]
[399561541,1766487497462,-2082.47,0.00045753,120]
[399561542,1766487497507,-500.0,0.00045753,120]